Workbook

Sheet Resumo Orcameno
A6: Obra: | D6: Perfuração e Instalação de Poços Tubulares Profundos
A8: Local: | D8: Comunidades dispersas situadas na zona rural dos municípios de Afogados da Ingazeira, Afrânio, Agrestina, Água Preta, Águas Belas, Alagoinha, Altinho, Angelim, Araripina, Arcoverde, Barra de Guabiraba, Barreiros, Belém de Maria, Belém do São Francisco, Betânia, Bezerros, Bodocó, Bom Conselho, Bonito, Brejão, Brejinho, Buíque, Cabrobó, Cachoeirinha, Caetés, Calçado, Calumbi, Camocim de São Félix, Canhotinho, Capoeiras, Carnaíba, Carnaubeira da Penha, Caruaru, Catende, Cedro, Correntes, Cupira, Custódia, Dormentes, Exu, Flores, Floresta, Gameleira, Garanhuns, Granito, Iati, Ibimirim, Ibirajuba, Iguaracy, Inajá, Ingazeira, Ipubi, Itacuruba, Itaíba, Itapetim, Jaqueira, Jatobá, Joaquim Nabuco, Jucati, Jupi, Jurema, Lagoa do Ouro, Lagoa dos Gatos, Lagoa Grande, Lajedo, Manari, Maraial, Mirandiba, Moreilândia, Orocó, Ouricuri, Palmares, Palmeirinha, Panelas, Paranatama, Parnamirim, Pedra, Pesqueira, Petrolândia, Petrolina, Quipapá, Quixaba, Rio Formoso, Salgueiro, Saloá, Sanharó, Santa Cruz, Santa Cruz da Baixa Verde, Santa Filomena, Santa Maria da Boa Vista, Santa Terezinha, São Benedito do Sul, São Bento do Uma, São Caitano, São João, São Joaquim do Monte, São José da Coroa Grande, São José do Belmonte, São José do Egito, Serra Talhada, Serrita, Sertânia, Solidão, Tabira, Tacaimbó, Tacaratu, Tamandaré, Terezinha, Terra Nova, Trindade, Triunfo, Tupanatinga, Tuparetama, Venturosa, Verdejante e Xexéu, no estado de Pernambuco, e Crato e Salitre, no estado do Ceará, inseridos na área de atuação da 3ª Superintendência Regional da CODEVASF.
E10: Total das Obras | G10: 14961086.7
A11: PLANILHA ORÇAMENTÁRIA - NÃO DESONERADA
A12: codigo | B12: ITEM | C12: COD | D12: DESCRIÇÃO DOS SERVIÇOS | E12: UNID. | F12: QUANT. | G12: PREÇO (R$)
G13: UNITÁRIO C/BDI | H13: TOTAL COM BDI
B14: I. | D14: SERVIÇOS PRELIMINARES
B15: 1 | D15: Serviços Preliminares, Administração Local e Fiscalização. | E15: un | F15: 1 | G15: 248504.66 | H15: 248504.66
B16: II. | D16: POÇOS TUBULARES PROFUNDOS
B17: II.A | D17: Poços Cristalinos
B18: 2 | D18: GRUPO 1: Perfuração e Instalação. | E18: un | F18: 200 | G18: 36327.01 | H18: 7265402.61
B19: II.B | D19: Poços Sedimentares | E19: un
B20: 5 | D20: GRUPO 4: Poços Sedimentares - Perfuração e Instalação | E20: un | F20: 42 | G20: 177313.79 | H20: 7447179.14

Sheet Serviços Preliminares a Adm_RES
A6: Obra: | D6: Perfuração e Instalação de Poços Tubulares Profundos
A8: Local: | D8: Comunidades dispersas situadas na zona rural dos municípios de Afogados da Ingazeira, Afrânio, Agrestina, Água Preta, Águas Belas, Alagoinha, Altinho, Angelim, Araripina, Arcoverde, Barra de Guabiraba, Barreiros, Belém de Maria, Belém do São Francisco, Betânia, Bezerros, Bodocó, Bom Conselho, Bonito, Brejão, Brejinho, Buíque, Cabrobó, Cachoeirinha, Caetés, Calçado, Calumbi, Camocim de São Félix, Canhotinho, Capoeiras, Carnaíba, Carnaubeira da Penha, Caruaru, Catende, Cedro, Correntes, Cupira, Custódia, Dormentes, Exu, Flores, Floresta, Gameleira, Garanhuns, Granito, Iati, Ibimirim, Ibirajuba, Iguaracy, Inajá, Ingazeira, Ipubi, Itacuruba, Itaíba, Itapetim, Jaqueira, Jatobá, Joaquim Nabuco, Jucati, Jupi, Jurema, Lagoa do Ouro, Lagoa dos Gatos, Lagoa Grande, Lajedo, Manari, Maraial, Mirandiba, Moreilândia, Orocó, Ouricuri, Palmares, Palmeirinha, Panelas, Paranatama, Parnamirim, Pedra, Pesqueira, Petrolândia, Petrolina, Quipapá, Quixaba, Rio Formoso, Salgueiro, Saloá, Sanharó, Santa Cruz, Santa Cruz da Baixa Verde, Santa Filomena, Santa Maria da Boa Vista, Santa Terezinha, São Benedito do Sul, São Bento do Uma, São Caitano, São João, São Joaquim do Monte, São José da Coroa Grande, São José do Belmonte, São José do Egito, Serra Talhada, Serrita, Sertânia, Solidão, Tabira, Tacaimbó, Tacaratu, Tamandaré, Terezinha, Terra Nova, Trindade, Triunfo, Tupanatinga, Tuparetama, Venturosa, Verdejante e Xexéu, no estado de Pernambuco, e Crato e Salitre, no estado do Ceará, inseridos na área de atuação da 3ª Superintendência Regional da CODEVASF.
E10: Total das Obras | G10: 14961086.41
A11: PLANILHA ORÇAMENTÁRIA - NÃO DESONERADA
A12: codigo | B12: ITEM | C12: COD | D12: DESCRIÇÃO DOS SERVIÇOS | E12: UNID. | F12: QUANT. | G12: PREÇO (R$)
G13: UNITÁRIO C/BDI | H13: TOTAL COM BDI
B14: 1 | D14: Serviços Preliminares | H14: 248504.66
B15: 1.1 | C15: CPU-01 | D15: Mobilização de Equipamentos, Materiais e Pessoal. | E15: un | F15: 72 | G15: 599.99 | H15: 43199.28
B16: 1.2 | C16: CPU-02 | D16: Desmobilização de Equipamentos, Materiais e Pessoal. | E16: un | F16: 2 | G16: 1094.2 | H16: 2188.4
B17: 1.3 | C17: CPU-03 | D17: Fornecimento, montagem e conservação de placa de identificação de obra padrão (3m x 2m). | E17: m² | F17: 55 | G17: 433.92 | H17: 23865.6
B18: 1.4 | C18: CPU-48 | D18: Fornecimento de Veículo 4x4 à fiscalização com seguro, taxas de licenciamento, revisão periódica, manutenção, combustível e pneus. | E18: mês | F18: 18 | G18: 5371.67 | H18: 96690.06
B19: 1.5 | C19: CPU-47 | D19: Fornecimento de material de apoio a fiscalização (GPS Portatil e Notebook). | E19: mês | F19: 18 | G19: 165.64 | H19: 2981.52
B20: 1.6 | C20: CPU-04 | D20: Administração local da obra. | E20: un | F20: 1 | G20: 79579.8 | H20: 79579.8
A21: EXECUÇÃO DOS POÇOS
B22: ITEM | D22: DESCRIÇÃO DOS SERVIÇOS | E22: UNID. | F22: QUANT. | G22: TOTAL C/ BDI (R$)
B23: 2 | D23: Poços Cristalinos - Completos | G23: 7265402.61
B24: 2.1 | D24: Poços Cristalinos profundidade média 60m - PERFURAÇÃO | E24: un | F24: 200 | G24: 2094678.33
B25: 2.2 | D25: Poços Cristalinos - Montagem e Instalação com bomba submersa. | E25: un | F25: 200 | G25: 5170724.28
B26: 5 | D26: Poços Sedimentares - Completos | H26: 7447179.14
B27: 5.1 | D27: Poços Sedimentares profundidade média 180m | E27: un | F27: 42 | G27: 4144184.38
B28: 5.2 | D28: Poços Sedimentares - Montagem e Instalação | E28: un | F28: 42 | G28: 3302994.76

Sheet Cristalino Completo
A6: Obra: | D6: Perfuração e Instalação de Poços Tubulares Profundos
A8: Local: | D8: Comunidades dispersas situadas na zona rural dos municípios de Afogados da Ingazeira, Afrânio, Agrestina, Água Preta, Águas Belas, Alagoinha, Altinho, Angelim, Araripina, Arcoverde, Barra de Guabiraba, Barreiros, Belém de Maria, Belém do São Francisco, Betânia, Bezerros, Bodocó, Bom Conselho, Bonito, Brejão, Brejinho, Buíque, Cabrobó, Cachoeirinha, Caetés, Calçado, Calumbi, Camocim de São Félix, Canhotinho, Capoeiras, Carnaíba, Carnaubeira da Penha, Caruaru, Catende, Cedro, Correntes, Cupira, Custódia, Dormentes, Exu, Flores, Floresta, Gameleira, Garanhuns, Granito, Iati, Ibimirim, Ibirajuba, Iguaracy, Inajá, Ingazeira, Ipubi, Itacuruba, Itaíba, Itapetim, Jaqueira, Jatobá, Joaquim Nabuco, Jucati, Jupi, Jurema, Lagoa do Ouro, Lagoa dos Gatos, Lagoa Grande, Lajedo, Manari, Maraial, Mirandiba, Moreilândia, Orocó, Ouricuri, Palmares, Palmeirinha, Panelas, Paranatama, Parnamirim, Pedra, Pesqueira, Petrolândia, Petrolina, Quipapá, Quixaba, Rio Formoso, Salgueiro, Saloá, Sanharó, Santa Cruz, Santa Cruz da Baixa Verde, Santa Filomena, Santa Maria da Boa Vista, Santa Terezinha, São Benedito do Sul, São Bento do Uma, São Caitano, São João, São Joaquim do Monte, São José da Coroa Grande, São José do Belmonte, São José do Egito, Serra Talhada, Serrita, Sertânia, Solidão, Tabira, Tacaimbó, Tacaratu, Tamandaré, Terezinha, Terra Nova, Trindade, Triunfo, Tupanatinga, Tuparetama, Venturosa, Verdejante e Xexéu, no estado de Pernambuco, e Crato e Salitre, no estado do Ceará, inseridos na área de atuação da 3ª Superintendência Regional da CODEVASF.
A10: Total de poços a perfurar | E10: Cristalino
E11: 200
A12: Total de poços a instalar | E12: Bomba c/ Energia Solar
E13: 200
A14: Data Base Utilizada para Insumos: SINAPI Julho/2020 Não Desonerado; ORSE Maio/2020; Cotações e COMPRASNET | E14: Valor Perfuração (R$) | G14: 2094678.33
E15: Instalação Motobomba c/ Sist. Solar (R$) | G15: 5170724.28
E16: Total das Obras | G16: 7265402.61
A17: PLANILHA ORÇAMENTÁRIA - NÃO DESONERADA
A18: Código | B18: ITEM | C18: COD | D18: DESCRIÇÃO DOS SERVIÇOS | E18: UNID. | F18: QUANT. | G18: PREÇO (R$)
G19: UNITÁRIO C/BDI | H19: TOTAL COM BDI
B20: 2 | D20: Poços Cristalinos profundidade média 60m - PERFURAÇÃO
A21: composição | B21: 2.1 | C21: CPU-05 | D21: Locação, acompanhamento da perfuração, teste de vazão e da instalação do poço, por profissional habilitado. | E21: un | F21: 200 | G21: 220.65 | H21: 44130
A22: composição | B22: 2.2 | C22: CPU-06 | D22: Limpeza do terreno - Raspagem e limpeza manual do terreno com destocamento de arvore até 15cm | E22: m² | F22: 800 | G22: 4.01 | H22: 3208
A23: composição | B23: 2.3 | C23: CPU-07 | D23: Montagem, instalação e desinstalação de sonda. | E23: un | F23: 200 | G23: 361.12 | H23: 72224
A24: composição | B24: 2.4 | C24: CPU-08 | D24: Perfuração de poço com diâmetro mínimo de 8" (solo decomposto). | E24: m | F24: 2800 | G24: 83.76 | H24: 234528
A25: composição | B25: 2.5 | C25: CPU-09 | D25: Perfuração de poço com diâmetro mínimo de 6" (rocha cristalina). | E25: m | F25: 11200 | G25: 90.04 | H25: 1008448
A26: composição | B26: 2.6 | C26: CPU-10 | D26: FORNECIMENTO E INSTALAÇÃO DE REVESTIMENTO DO POÇO EM TUBO PVC GEOMECÂNICO STD EM DN DE 6'' COM LUVAS E ROSCA. | E26: m | F26: 2800 | G26: 96.36 | H26: 269808
A27: composição | B27: 2.7 | C27: CPU-11 | D27: Cimentação anelar do poço, com argamassa de cimento e areia produzida no traço 1:3. | E27: m³ | F27: 38.51 | G27: 420.58 | H27: 16196.54
A28: composição | B28: 2.9 | C28: CPU-12 | D28: Realização de limpeza, desenvolvimento e estimulação do poço, realizado mediante a utilização de compressor de ar pelo método de fluxo e refluxo, incluindo operação e a instalação de compressor de ar, em conformidade com a NBR12244. | E28: un | F28: 200 | G28: 204.55 | H28: 40910
A29: composição | B29: 2.10 | C29: CPU-13 | D29: Fornecimento e instalação de Cap fêmea de ponta de tubo de 6", para impedir contaminação do poço, inclusive anel de vedação e borracha. | E29: un | F29: 200 | G29: 151.62 | H29: 30324
A30: composição | B30: 2.11 | C30: CPU-14 | D30: Realização de desinfecção do poço, incluindo material de limpeza, instalação e desinstalação de compressor, combustível e operador. | E30: un | F30: 200 | G30: 157.63 | H30: 31526
A31: composição | B31: 2.12 | C31: CPU-15 | D31: Realização de análise físico-química e bacteriológica da água em conformidade com a NR 518, incluindo a coleta, taxas e transporte. | E31: un | F31: 200 | G31: 292.12 | H31: 58424
A32: composição | B32: 2.13 | C32: CPU-16 | D32: Realização de teste de vazão e de bombeamento do poço, incluindo operação e instalação de motobomba submersa e grupo gerador eletrico, em conformidade com a NBR 12244. | E32: un | F32: 200 | G32: 668.58 | H32: 133716
A33: composição | B33: 2.14 | C33: CPU-18 | D33: Cadastro de uso de água subterranea - APAC e CPRH/PE. | E33: un | F33: 200 | G33: 104.7 | H33: 20940
A34: composição | B34: 2.15 | C34: CPU-17 | D34: Construção de laje de proteção sanitária em concreto armado para qualquer tipo de estrutura, FCK = 15 Mpa, virado em betoneira na obra, incluindo aplicação e adensamento, forma, escoramento e ferragens, nas dimensões-1,0m x 1,0m x 0,15m, com declividade de 2% em relação ao centro do poço para as bordas, em conformidade com a NBR 12244. | E34: m³ | F34: 30 | G34: 784.77 | H34: 23543.1
A35: composição | B35: 2.16 | C35: CPU-29 | D35: Fornecimento e instalação de Pré-filtro preenchido com material quartzoso previamente lavado, peneirado e selecionado com granulometria variável de 2 - 4 mm em conformidade com NBR 12244. | E35: m³ | F35: 2.03 | G35: 1728.32 | H35: 3508.49
A36: composição | B36: 2.17 | C36: CPU-19 | D36: Fornecimento e instalação de Tubo PVC Geo mecanico STD DN de 4" com luvas e rosca. | E36: m | F36: 1000 | G36: 83.5 | H36: 83500
A37: composição | B37: 2.18 | C37: CPU-20 | D37: Fornecimento e instalação de Filtro Geo mecanico STD DN de 4" com luvas e rosca. | E37: m | F37: 200 | G37: 89.6 | H37: 17920
A38: composição | B38: 2.19 | C38: CPU-21 | D38: Fornecimento e instalação de Cap PVC geomecânico STD. em DN 4" para vedação do fundo do filtro, inclusive anel de vedação e borracha. | E38: un | F38: 20 | G38: 91.21 | H38: 1824.2
B39: 4 | D39: Poços Cristalinos -Montagem e Instalação
A40: composição | B40: 4.1 | C40: CPU-32 | D40: Fornecimento e assentamento de tubos e conexões em PVC tipo Edutor, azul, Diâmetro Nominal de 50mm (interligação do poço à caixa do reservatório). | E40: m | F40: 4000 | G40: 14.64 | H40: 58560
A41: composição | B41: 4.3 | C41: CPU-06 | D41: Limpeza do terreno - Raspagem e limpeza manual do terreno com destocamento de arvore até 15cm (área de bebedouro e do reservatório). | E41: m² | F41: 2050 | G41: 4.01 | H41: 8220.5
A42: composição | B42: 4.4 | C42: CPU-33 | D42: Escavação manual de vala de fundação em material de 1 e 2ª categoria, com dimensões de 0,40m (prof.) x 0,30m (larg.), incluindo regularização manual do fundo da vala (reservatório ao bebedouro). | E42: m³ | F42: 480 | G42: 39.52 | H42: 18969.6
A43: composição | B43: 4.5 | C43: CPU-34 | D43: Aterro manual de valas de fundação com 0,40m de profundidade, 0,30m largura, com avaliação visual da compactação (reservatório ao bebedouro). | E43: m³ | F43: 480 | G43: 36.47 | H43: 17505.6
A44: composição | B44: 4.6 | C44: CPU-33 | D44: Escavação manual de vala de fundação para instalação de tubulação de adutora em material de 1ª e 2ª categoria, com dimensões de 0,40m (prof.) x 0,30m (larg.), incluindo regularização manual do fundo da vala (poço ao reservatório). | E44: m³ | F44: 480 | G44: 39.52 | H44: 18969.6
A45: composição | B45: 4.7 | C45: CPU-34 | D45: Aterro manual de valas de fundação com 0,40m de profundidade, 0,30m de largura, com avaliação visual da compactação (poço ao reservatório). | E45: m³ | F45: 468.22 | G45: 36.47 | H45: 17075.98
A46: composição | B46: 4.8 | C46: CPU-35 | D46: Fornecimento e assentamento de tubos e conexões em PVC, marrom, diâmetros de 32mm, soldável. | E46: m | F46: 3000 | G46: 29.35 | H46: 88050
A47: composição | B47: 4.9 | C47: CPU-36 | D47: Fornecimento e instalação de caixa d'água de fibra de 5m³, sobre base de concreto armado, incluído tubulação de dreno, lavagem e ladrão. | E47: un | F47: 200 | G47: 1678.45 | H47: 335690
A48: composição | B48: 4.10 | C48: CPU-37 | D48: Fornecimento e montagem de cerca de proteção construída com mourões de concreto armado (H=2,5m), com 7 fios de arame farpado, incluindo chumbamento e arame de fixação. | E48: m | F48: 4900 | G48: 43.75 | H48: 214375
A49: composição | B49: 4.11 | C49: CPU-39 | D49: Fornecimento, montagem e instalação de portão de ferro tubular, tela em aço galvanizado, dobradiças e fechadura para passagem de pedestre, medindo 1,80m x 1,10m, incluindo mourão de sustentação. | E49: un | F49: 200 | G49: 976.07 | H49: 195214
A50: composição | B50: 4.12 | C50: CPU-38 | D50: Execução de bebedouro em concreto armado, incluindo a instalação hidráulica. | E50: un | F50: 200 | G50: 1341.88 | H50: 268376
A51: composição | B51: 4.13 | C51: CPU-40 | D51: Execução de base de sustentação do reservatório em concreto armado, diâmetro de 2,06m e altura de 1,10m, conforme projeto. | E51: un | F51: 200 | G51: 1826.14 | H51: 365228
B52: 4.1 | D52: Sistema de bombeamento com energia solar - Poços Cristalinos
A53: composição | B53: 4.1.1 | C53: CPU-42 | D53: Fornecimento de kit para bombeamento com suprimento por energia solar - SISTEMA GRID 1 | E53: unid. | F53: 200 | G53: 17571.55 | H53: 3514310
A54: composição | B54: 4.1.2 | C54: CPU-44 | D54: Fornecimento de cabo de cobre # 3 x 4mm2 + 1 x 4mm2 conforme especificação | E54: m | F54: 13000 | G54: 3.86 | H54: 50180

Sheet Poços Sedimentares
A6: Obra: | D6: Perfuração e Instalação de Poços Tubulares Profundos
A8: Local: | D8: Comunidades dispersas situadas na zona rural dos municípios de Afogados da Ingazeira, Afrânio, Agrestina, Água Preta, Águas Belas, Alagoinha, Altinho, Angelim, Araripina, Arcoverde, Barra de Guabiraba, Barreiros, Belém de Maria, Belém do São Francisco, Betânia, Bezerros, Bodocó, Bom Conselho, Bonito, Brejão, Brejinho, Buíque, Cabrobó, Cachoeirinha, Caetés, Calçado, Calumbi, Camocim de São Félix, Canhotinho, Capoeiras, Carnaíba, Carnaubeira da Penha, Caruaru, Catende, Cedro, Correntes, Cupira, Custódia, Dormentes, Exu, Flores, Floresta, Gameleira, Garanhuns, Granito, Iati, Ibimirim, Ibirajuba, Iguaracy, Inajá, Ingazeira, Ipubi, Itacuruba, Itaíba, Itapetim, Jaqueira, Jatobá, Joaquim Nabuco, Jucati, Jupi, Jurema, Lagoa do Ouro, Lagoa dos Gatos, Lagoa Grande, Lajedo, Manari, Maraial, Mirandiba, Moreilândia, Orocó, Ouricuri, Palmares, Palmeirinha, Panelas, Paranatama, Parnamirim, Pedra, Pesqueira, Petrolândia, Petrolina, Quipapá, Quixaba, Rio Formoso, Salgueiro, Saloá, Sanharó, Santa Cruz, Santa Cruz da Baixa Verde, Santa Filomena, Santa Maria da Boa Vista, Santa Terezinha, São Benedito do Sul, São Bento do Uma, São Caitano, São João, São Joaquim do Monte, São José da Coroa Grande, São José do Belmonte, São José do Egito, Serra Talhada, Serrita, Sertânia, Solidão, Tabira, Tacaimbó, Tacaratu, Tamandaré, Terezinha, Terra Nova, Trindade, Triunfo, Tupanatinga, Tuparetama, Venturosa, Verdejante e Xexéu, no estado de Pernambuco, e Crato e Salitre, no estado do Ceará, inseridos na área de atuação da 3ª Superintendência Regional da CODEVASF.
A10: Total de poços a perfurar | G10: Sedimentar
G11: 42
A12: Total de poços a instalar | G12: Bomba c/ Sist. Solar
G13: 42
A14: Data Base Utilizada para Insumos: SINAPI Julho/2020 Não Desonerado; ORSE Maio/2020; Cotações e COMPRASNET | E14: Valor Perfuração (R$) | G14: 4144184.38
E15: Instalação Sist. Solar | G15: 3302994.76
E16: Total das Obras | G16: 7447179.14
A17: PLANILHA ORÇAMENTÁRIA - NÃO DESONERADA
A18: Código | B18: ITEM | C18: COD | D18: DESCRIÇÃO DOS SERVIÇOS | E18: UNID. | F18: QUANT. | G18: PREÇO (R$)
G19: UNITÁRIO C/BDI | H19: TOTAL COM BDI
B20: 3 | D20: Poços Sedimentares profundidade média 180m
A21: composição | B21: 3.1 | C21: CPU-05 | D21: Locação, acompanhamento da perfuração, teste de vazão e da instalação do poço, por profissional habilitado. | E21: un | F21: 42 | G21: 220.65 | H21: 9267.3
A22: composição | B22: 3.2 | C22: CPU-06 | D22: Limpeza do terreno - Raspagem e limpeza manual do terreno com destocamento de arvore até 15cm. | E22: m² | F22: 12600 | G22: 4.01 | H22: 50526
A23: composição | B23: 3.3 | C23: CPU-07 | D23: Montagem, instalação e desinstalação de sonda. | E23: un | F23: 42 | G23: 361.12 | H23: 15167.04
A24: composição | B24: 3.4 | C24: CPU-22A | D24: Perfuração de Poço em rocha sedimentar com diâmetro de 16". | E24: m | F24: 1848 | G24: 215.23 | H24: 397745.04
A25: composição | B25: 3.5 | C25: CPU-23 | D25: Perfuração de Poço em rocha sedimentar com diâmetro de 12 1/4". | E25: m | F25: 7392 | G25: 189.49 | H25: 1400710.08
A26: composição | B26: 3.6 | C26: CPU-13 | D26: Fornecimento e instalação de Cap fêmea de ponta de tubo de 6", para impedir contaminação do poço, inclusive anel de vedação e borracha. | E26: un | F26: 42 | G26: 151.62 | H26: 6368.04
A27: composição | B27: 3.7 | C27: CPU-24 | D27: Fornecimento e instalação de Cap PVC geomecânico REF. em DN 6" para vedação do fundo do filtro, inclusive anel de vedação e borracha. | E27: un | F27: 42 | G27: 159.37 | H27: 6693.54
A28: composição | B28: 3.8 | C28: CPU-13 | D28: Fornecimento e instalação de Cap PVC geomecânico STD. em DN 6" para vedação do fundo do filtro, inclusive anel de vedação e borracha. | E28: un | F28: 42 | G28: 151.62 | H28: 6368.04
A29: composição | B29: 3.9 | C29: CPU-10 | D29: Fornecimento e instalação de Revestimento do Poço em Tubo PVC Geomecânico STD em DN de 6" com luvas e rosca (Para poços de até no máximo 150m de profundidade). | E29: m | F29: 6468 | G29: 96.36 | H29: 623256.48
A30: composição | B30: 3.10 | C30: CPU-26 | D30: Fornecimento e instalação de Revestimento do Poço em Tubo PVC Geomecânico REF em DN de 6" com luvas e rosca (Para poços de 150 m a 300 m de profundidade). | E30: m | F30: 2772 | G30: 161.43 | H30: 447483.96
A31: composição | B31: 3.11 | C31: CPU-11 | D31: Fornecimento e aplicação de nata de cimento para cimentação anelar e isolamento de aquíferos e proteção sanitária em conformidade com a NBR 12244. | E31: m³ | F31: 281.17 | G31: 420.58 | H31: 118254.48
A32: composição | B32: 3.12 | C32: CPU-27 | D32: Fornecimento e instalação de Filtro em Tubo de PVC Geomecânico REF. em DN de 6" com luva e rosca com aberturas de 0,5mm. (Para poços de 150m até no máximo 300m de profundidade). | E32: m | F32: 2772 | G32: 140.23 | H32: 388717.56
A33: composição | B33: 3.13 | C33: CPU-28 | D33: Fornecimento e instalação de Filtro em Tubo de PVC Geomecânico STD. em DN de 6" com luva e rosca com aberturas de 0,5mm. (Para poços até 150m de profundidade). | E33: m | F33: 2772 | G33: 102.48 | H33: 284074.56
A34: composição | B34: 3.14 | C34: CPU-29 | D34: Fornecimento e instalação de Pré-filtro preenchido com material quartzoso previamente lavado, peneirado e selecionado com granulometria variável de 2 - 4 mm em conformidade com NBR 12244. | E34: m³ | F34: 160.28 | G34: 1728.32 | H34: 277015.13
A35: composição | B35: 3.16 | C35: CPU-12 | D35: Realização de limpeza, desenvolvimento e estimulação do poço, realizado mediante a utilização de compressor de ar pelo método de fluxo e refluxo, incluindo operação e a instalação de compressor de ar, em conformidade com a NBR12244. | E35: un | F35: 42 | G35: 204.55 | H35: 8591.1
A36: composição | B36: 3.17 | C36: CPU-16 | D36: Realização de teste de vazão e de bombeamento do poço, incluindo operação e Instalação motor-bomba submersa e grupo gerador elétrico, em conformidade com a NBR 12244. | E36: un | F36: 42 | G36: 668.58 | H36: 28080.36
A37: composição | B37: 3.18 | C37: CPU-31 | D37: Realização de Perfilagem geofísica do poço em conformidade com a NBR 12244. | E37: un | F37: 42 | G37: 570.28 | H37: 23951.76
A38: composição | B38: 3.19 | C38: CPU-14 | D38: Realização de desinfecção do poço, incluindo material de limpeza, instalação e desinstalação de compressor, combustível e operador. | E38: un | F38: 42 | G38: 157.63 | H38: 6620.46
A39: composição | B39: 3.20 | C39: CPU-15 | D39: Realização de Análise Físico-Química e bacteriológica da água em conformidade com a NR 518, incluindo a coleta, taxas e transporte. | E39: un | F39: 42 | G39: 292.12 | H39: 12269.04
A40: composição | B40: 3.21 | C40: CPU-16 | D40: Obtenção junto aos órgãos competente da Outorga de funcionamento e uso de recursos hídricos - CPRH/PE. | E40: un | F40: 42 | G40: 668.58 | H40: 28080.36
A41: composição | B41: 3.22 | C41: CPU-17 | D41: Construção de laje de proteção sanitária em concreto armado para qualquer tipo de estrutura, inclusive forma e ferragens, nas dimensões-1,0m x 1,0m x 0,15m, com declividade de 2% em relação ao centro do poço para as bordas em conformidade com a NBR 12244. | E41: m³ | F41: 6.3 | G41: 784.77 | H41: 4944.05
B42: 6 | D42: Poços Sedimentares - Montagem e Instalação
A43: composição | B43: 6.3 | C43: CPU-32 | D43: Fornecimento e assentamento de tubos e conexões em PVC tipo Edutor, azul, Diâmetro Nominal de 50mm (interligação do poço a caixa do reservatório). | E43: m | F43: 7392 | G43: 14.64 | H43: 108218.88
A44: composição | B44: 6.5 | C44: CPU-41 | D44: Locação de rede de adutora para interligação do poço ao reservatório e deste ao bebedouro. | E44: m | F44: 7392 | G44: 87.57 | H44: 647317.44
A45: composição | B45: 6.6 | C45: CPU-35 | D45: Fornecimento e assentamento de tubos e conexões em PVC, marrom, diâmetros de 32mm, soldável. | E45: m | F45: 6300 | G45: 29.35 | H45: 184905
A46: composição | B46: 6.7 | C46: CPU-33 | D46: Escavação manual de vala de fundação para instalação de tubulação de adutora em material de 1ª e 2ª categoria, com dimensões de 0,40m (prof.) x 0,30m (larg.), incluindo regularização manual do fundo da vala (poço ao reservatório). | E46: m³ | F46: 887.04 | G46: 39.52 | H46: 35055.82
A47: composição | B47: 6.8 | C47: CPU-34 | D47: Aterro manual de valas de fundação com 0,40m de profundidade, 0,30m de largura, com avaliação visual da compactação (poço ao reservatório). | E47: m³ | F47: 874.67 | G47: 36.47 | H47: 31899.21
A48: composição | B48: 6.9 | C48: CPU-36 | D48: Fornecimento e instalação de caixa d'água de fibra de 5m³, sobre base de concreto armado, incluído tubulação de dreno, lavagem e ladrão. | E48: un | F48: 42 | G48: 1678.45 | H48: 70494.9
A49: composição | B49: 6.10 | C49: CPU-37 | D49: Fornecimento e montagem de cerca de proteção construída com mourões de concreto armado (H=2,5m), com 7 fios de arame farpado, incluindo chumbamento e arame de fixação. | E49: m | F49: 1533 | G49: 43.75 | H49: 67068.75
A50: composição | B50: 6.11 | C50: CPU-39 | D50: Fornecimento, montagem e instalação de portão de ferro tubular, tela em aço galvanizado, dobradiças e fechadura para passagem de pedestre, medindo 1,80m x 1,10m, incluindo mourão de sustentação. | E50: un | F50: 42 | G50: 976.07 | H50: 40994.94
A51: composição | B51: 6.12 | C51: CPU-33 | D51: Escavação manual de vala de fundação em material de 1 e 2ª categoria, com dimensões de 0,40 m (prof.) x 0,30 m (larg.), incluindo regularização manual do fundo da vala (reservatório ao bebedouro). | E51: m³ | F51: 756 | G51: 39.52 | H51: 29877.12
A52: composição | B52: 6.13 | C52: CPU-34 | D52: Aterro manual de valas de fundação com 0,40m de profundidade, 0,30m de largura, com avaliação visual da compactação (reservatório ao bebedouro). | E52: m³ | F52: 749.24 | G52: 36.47 | H52: 27324.78
A53: composição | B53: 6.14 | C53: CPU-38 | D53: Execução de bebedouro em concreto armado, incluindo a instalação hidráulica. | E53: un | F53: 42 | G53: 1341.88 | H53: 56358.96
A54: composição | B54: 6.15 | C54: CPU-40 | D54: Execução de base de sustentação do reservatório em concreto armado, diâmetro de 2,06m e altura de 1,10m, conforme projeto. | E54: un | F54: 42 | G54: 1826.14 | H54: 76697.88
B55: 6.1 | D55: Poços Sedimentares - Sistema de bombeamento com energia solar
A56: composição | B56: 6.1.1 | C56: CPU-43 | D56: Fornecimento de kit para bombeamento com suprimento por energia solar - SISTEMA GRID 2 | E56: unid. | F56: 42 | G56: 44762.44 | H56: 1880022.48
A57: composição | B57: 6.1.2 | C57: CPU-45 | D57: Fornecimento de cabo de cobre # 3 x 6mm2 + 1 x 6mm2 conforme especificação | E57: m | F57: 2100 | G57: 5.26 | H57: 11046
A58: composição | B58: 6.1.3 | C58: CPU-46 | D58: Fornecimento de cabo de cobre # 3 x 10mm2 + 1 x 10mm2 conforme especificação | E58: m | F58: 4620 | G58: 7.73 | H58: 35712.6

Sheet COMPOSIÇÕES
B4: OBJETO: | C4: PERFURAÇÃO E INSTALAÇÃO DE POÇOS TUBULARES EM ÁREAS DE ROCHAS CRISTALINAS, PERFURAÇÃO E INSTALAÇÃO DE 22 (VINTE E DOIS) POÇOS TUBULARES EM ÁREAS DE ROCHAS SEDIMENTARES, INSTALAÇÃO DE 550 (QUINHENTOS E CINQUENTA) POÇOS TUBULARES EM ÁREAS DE ROCHAS CRISTALINAS E PERFURAÇÃO DE 120 (CENTO E VINTE) POÇOS TUBULARES EM ÁREAS DE ROCHAS CRISTALINAS, TODOS LOCALIZADOS EM MUNICÍPIOS INSERIDOS NA ÁREA DE ATUAÇÃO DA 3ª SUPERINTENDÊNCIA REGIONAL DA CODEVASF, ATRAVÉS DE SISTEMA DE REGISTRO DE PREÇOS - SRP.
B6: Data Base Utilizada para Insumos: SINAPI Julho/2020 Não Desonerado; ORSE Maio/2020; Cotações e COMPRASNET | F6: BDI Serv.: | G6: 0.2336 | H6: BDI Mat.: | I6: 0.1143
F7: Encargos Sociais: | H7: Horista | I7: Mensalista
H8: 1.1503 | I8: 0.7107
A10: PLANILHA ORÇAMENTARIA NÁO DESONERADA - Julho/2019
A12: DETALHAMENTO DAS COMPOSIÇÕES DE CUSTO UNITÁRIO
B14: CPU-01 | C14: FONTE | D14: Codevasf | E14: MOBILIZAÇÃO DE EQUIPAMENTOS, MATERIAIS E PESSOAL | F14: UNID | G14: COEF. | H14: PRECO UNITÁRIO (R$) | I14: TOTAL (R$)
E16: FORNECIMENTOS
F19: Sub total: | I19: 0
G20: BDI Materiais | H20: 0.1143 | I20: 0
H21: Total Fornecimentos: | I21: 0
E22: SERVIÇOS
B23: ORSE | C23: Cotação de Mercdo | D23: 10434/ORSE | E23: Caminhão carroceria de madeira 9 toneladas | F23: h | G23: 3.5 | H23: 90.41 | I23: 316.44
B24: CODEVASF | C24: tab. Codevasf | D24: VEICULO/ TABELA CODEVASF 2019 (B9) | E24: PICK-UP SAVEIRO ROBUST 1.6 TOTAL FLEX 8V | F24: h | G24: 3.5 | H24: 16.05 | I24: 56.18
B25: COMP. SINAPI | C25: SINAPI | D25: 88316 | E25: SERVENTE COM ENCARGOS COMPLEMENTARES | F25: h | G25: 7 | H25: 16,25 | I25: 113.75
F26: Sub total: | I26: 486.37
G27: BDI Serviços | H27: 0.2336 | I27: 113.62
H28: Total Serviços: | I28: 599.99
F29: CPU-01 | G29: PREÇO UNITÁRIO TOTAL: | I29: 599.99
B31: CPU-02 | C31: FONTE | D31: Codevasf | E31: DESMOBILIZAÇÃO DE EQUIPAMENTOS, MATERIAIS E PESSOAL | F31: UNID | G31: COEF. | H31: PRECO UNITÁRIO (R$) | I31: TOTAL (R$)
E33: FORNECIMENTOS
F35: Sub total: | I35: 0
G36: BDI Materiais | H36: 0.1143 | I36: 0
H37: Total Fornecimentos: | I37: 0
E38: SERVIÇOS
B39: ORSE | C39: Cotação de Mercdo | D39: 10434/ORSE | E39: Caminhão carroceria de madeira 9 toneladas | F39: h | G39: 6.5 | H39: 90.41 | I39: 587.67
B40: CODEVASF | C40: tab. Codevasf | D40: VEICULO/ TABELA CODEVASF 2019 (B9) | E40: PICK-UP SAVEIRO ROBUST 1.6 TOTAL FLEX 8V | F40: h | G40: 6.5 | H40: 16.05 | I40: 104.33
B41: COMP. SINAPI | C41: SINAPI | D41: 88316 | E41: SERVENTE COM ENCARGOS COMPLEMENTARES | F41: unid | G41: 12 | H41: 16,25 | I41: 195
F42: Sub total: | I42: 887
G43: BDI Serviços | H43: 0.2336 | I43: 207.2
H44: Total Serviços: | I44: 1094.2
F45: CPU-02 | G45: PREÇO UNITÁRIO TOTAL: | I45: 1094.2
B47: CPU-03 | C47: FONTE | D47: Codevasf | E47: FORNECIMENTO, MONTAGEM E CONSERVAÇÃO DE PLACA DE IDENTIFICAÇÃO DE OBRA PADRÃO (3M X 2M). | F47: M² | G47: COEF. | H47: PRECO UNITÁRIO (R$) | I47: TOTAL (R$)
E49: FORNECIMENTOS
B50: INS. SINAPI | C50: SINAPI | D50: 5075 | E50: Prego 18x30. | F50: kg | G50: 0.11 | H50: 11,70 | I50: 1.29
B51: INS. SINAPI | C51: SINAPI | D51: 4491 | E51: Peca de madeira nativa / regional 7,5 x 7,5cm (3x3) nao aparelhada (p/forma) | F51: m | G51: 4 | H51: 6,16 | I51: 24.64
B52: INS. SINAPI | C52: SINAPI | D52: 4417 | E52: Peca de madeira de lei *2,5 x 7,5* cm (1" x 3"), não aparelhada, (p/telhado) | F52: m | G52: 1 | H52: 2,52 | I52: 2.52
B53: INS. SINAPI | C53: SINAPI | D53: 4813 | E53: Placa de obra (para construcao civil) em chapa galvanizada *nº 22*, de *2,0 x 1,125* m | F53: m² | G53: 1 | H53: 300,00 | I53: 300
B54: INS. SINAPI | C54: SINAPI | D54: 370 | E54: Areia Média | F54: m³ | G54: 0.0049 | H54: 87,00 | I54: 0.43
B55: INS. SINAPI | C55: SINAPI | D55: 1379 | E55: Cimento | F55: kg | G55: 1.5 | H55: 0,44 | I55: 0.66
B56: INS. SINAPI | C56: SINAPI | D56: 4718 | E56: Pedra Britada nº 2 | F56: m³ | G56: 0.0098 | H56: 59,13 | I56: 0.58
F57: Sub total: | I57: 330.12
G58: BDI Materiais | H58: 0.1143 | I58: 37.73
H59: Total Fornecimentos: | I59: 367.85
E60: SERVIÇOS
B61: COMP. SINAPI | C61: SINAPI | D61: 87445 | E61: Betoneira 320 l, diesel, potencia de 5,5 hp, sem carregador mecanico (locacao) | F61: h | G61: 0.0065 | H61: 3,15 | I61: 0.02
B62: COMP. SINAPI | C62: SINAPI | D62: 88262 | E62: CARPINTEIRO DE FORMAS COM ENCARGOS COMPLEMENTARES | F62: h | G62: 1 | H62: 20,06 | I62: 20.06
B63: COMP. SINAPI | C63: SINAPI | D63: 88316 | E63: SERVENTE COM ENCARGOS COMPLEMENTARES | F63: h | G63: 2.06 | H63: 16,25 | I63: 33.48
F64: Sub total: | I64: 53.56
G65: BDI Serviços | H65: 0.2336 | I65: 12.51
H66: Total Serviços: | I66: 66.07
F67: CPU-03 | G67: PREÇO UNITÁRIO TOTAL: | I67: 433.92
B69: CPU-04 | C69: FONTE | D69: Codevasf | E69: ADMINISTRAÇÃO LOCAL DA OBRA. | F69: UND | G69: COEF. | H69: PRECO UNITÁRIO (R$) | I69: TOTAL (R$)
E71: FORNECIMENTOS
F73: Sub total: | I73: 0
G74: BDI Materiais | H74: 0.1143 | I74: 0
H75: Total Fornecimentos: | I75: 0
E76: SERVIÇOS
B77: INS. SINAPI | C77: SINAPI | D77: 43486 | E77: EPI | F77: h | G77: 35 | H77: 0,57 | I77: 19.95
B78: CODEVASF | C78: tab. Codevasf | D78: VEICULO/ TABELA CODEVASF 2019 (B9) | E78: PICK-UP SAVEIRO ROBUST 1.6 TOTAL FLEX 8V | F78: h | G78: 150 | H78: 16.05 | I78: 2407.5
B79: INS. SINAPI | C79: SINAPI | D79: 2707 | E79: Geólogo | F79: h | G79: 35 | H79: 84,24 | I79: 2948.4
F80: Sub total: | I80: 5375.85
G81: BDI Serviços | H81: 0.2336 | I81: 1255.8
G82: Total Serviços - Custo mensal: | I82: 6631.65
G83: Total Serviços - Custo para 12 meses: | I83: 79579.8
F84: CPU-04 | G84: PREÇO UNITÁRIO TOTAL: | I84: 79579.8
B86: CPU-05 | C86: FONTE | D86: Codevasf | E86: LOCAÇÃO, ACOMPANHAMENTO DA PERFURAÇÃO, TESTE DE VAZÃO E DA INSTALAÇÃO DO POÇO, POR PROFISSIONAL HABILITADO. | F86: UND | G86: COEF. | H86: PRECO UNITÁRIO (R$) | I86: TOTAL (R$)
E88: FORNECIMENTOS
F91: Sub total: | I91: 0
G92: BDI Materiais | H92: 0.1143 | I92: 0
H93: Total Fornecimentos: | I93: 0
E94: SERVIÇOS
B95: INS. SINAPI | C95: SINAPI | D95: 4778 | E95: Locação de equipamento para perfuração (Método Geofísico). | F95: h | G95: 1.5 | H95: 2,70 | I95: 4.05
B96: COMP. SINAPI | C96: SINAPI | D96: 88316 | E96: SERVENTE COM ENCARGOS COMPLEMENTARES | F96: h | G96: 1.5 | H96: 16,25 | I96: 24.38
B97: INS. SINAPI | C97: SINAPI | D97: 2707 | E97: Geólogo | F97: h | G97: 1.5 | H97: 84,24 | I97: 126.36
B98: CODEVASF | C98: tab. Codevasf | D98: VEICULO/ TABELA CODEVASF 2019 (B9) | E98: PICK-UP SAVEIRO ROBUST 1.6 TOTAL FLEX 8V | F98: h | G98: 1.5 | H98: 16.05 | I98: 24.08
F99: Sub total: | I99: 178.87
G100: BDI Serviços | H100: 0.2336 | I100: 41.78
H101: Total Serviços: | I101: 220.65
F102: CPU-05 | G102: PREÇO UNITÁRIO TOTAL: | I102: 220.65
B104: CPU-06 | C104: FONTE | D104: Codevasf | E104: LIMPEZA DO TERRENO - RASPAGEM E LIMPEZA MANUAL DO TERRENO COM DESTOCAMENTO DE ARVORE ATÉ 15CM. | F104: M² | G104: COEF. | H104: PRECO UNITÁRIO (R$) | I104: TOTAL (R$)
E106: FORNECIMENTOS
F108: Sub total: | I108: 0
G109: BDI Materiais | H109: 0.1143 | I109: 0
H110: Total Fornecimentos: | I110: 0
E111: SERVIÇOS
B112: COMP. SINAPI | C112: SINAPI | D112: 88316 | E112: SERVENTE COM ENCARGOS COMPLEMENTARES | F112: h | G112: 0.2 | H112: 16,25 | I112: 3.25
F114: Sub total: | I114: 3.25
G115: BDI Serviços | H115: 0.2336 | I115: 0.76
H116: Total Serviços: | I116: 4.01
F117: CPU-06 | G117: PREÇO UNITÁRIO TOTAL: | I117: 4.01
B119: CPU-07 | C119: FONTE | D119: Codevasf | E119: MONTAGEM, INSTALAÇÃO E DESINSTALAÇÃO DE SONDA. | F119: UNID | G119: COEF. | H119: PRECO UNITÁRIO (R$) | I119: TOTAL (R$)
E121: FORNECIMENTOS
B122: INS. SINAPI | C122: SINAPI | D122: 4227 | E122: Lubrificante | F122: l | G122: 0.5 | H122: 17,50 | I122: 8.75
B123: INS. SINAPI | C123: SINAPI | D123: 4221 | E123: Óleo diesel | F123: l | G123: 15 | H123: 3,28 | I123: 49.2
F124: Sub total: | I124: 57.95
G125: BDI Materiais | H125: 0.1143 | I125: 6.62
H126: Total Fornecimentos: | I126: 64.57
E127: SERVIÇOS
B128: COMP. SINAPI | C128: SINAPI | D128: 88316 | E128: SERVENTE COM ENCARGOS COMPLEMENTARES | F128: h | G128: 0.2 | H128: 16,25 | I128: 3.25
B129: COMP. SINAPI | C129: SINAPI | D129: 90776 | E129: Encarregado | F129: h | G129: 1 | H129: 38,55 | I129: 38.55
B130: COMP. SINAPI | C130: SINAPI | D130: 88285 | E130: Motorista | F130: h | G130: 2 | H130: 35,28 | I130: 70.56
B131: COMP. SINAPI | C131: SINAPI | D131: 5953 | E131: Perfuratriz | F131: h | G131: 3.5 | H131: 36,58 | I131: 128.03
F132: Sub total: | I132: 240.39
G133: BDI Serviços | H133: 0.2336 | I133: 56.16
H134: Total Serviços: | I134: 296.55
F135: CPU-07 | G135: PREÇO UNITÁRIO TOTAL: | I135: 361.12
B137: CPU-08 | C137: FONTE | D137: Codevasf | E137: PERFURAÇÃO DE POÇO COM DIÂMETRO MÍNIMO DE 8'' - SOLO DECOMPOSTO. | F137: M | G137: COEF. | H137: PRECO UNITÁRIO (R$) | I137: TOTAL (R$)
E139: FORNECIMENTOS
B140: INS. SINAPI | C140: SINAPI | D140: 4227 | E140: Lubrificante | F140: l | G140: 0.1 | H140: 17,50 | I140: 1.75
B141: INS. SINAPI | C141: SINAPI | D141: 4229 | E141: Graxa grafitada | F141: kg | G141: 0.1 | H141: 25,69 | I141: 2.57
B142: INS. SINAPI | C142: SINAPI | D142: 4221 | E142: Óleo diesel | F142: l | G142: 0.5 | H142: 3,28 | I142: 1.64
F143: Sub total: | I143: 5.96
G144: BDI Materiais | H144: 0.1143 | I144: 0.68
H145: Total Fornecimentos: | I145: 6.64
E146: SERVIÇOS
B147: COMP. SINAPI | C147: SINAPI | D147: 88316 | E147: SERVENTE COM ENCARGOS COMPLEMENTARES | F147: h | G147: 0.8 | H147: 16,25 | I147: 13
B148: COMP. SINAPI | C148: SINAPI | D148: 90776 | E148: Encarregado | F148: h | G148: 0.65 | H148: 38,55 | I148: 25.06
B149: COMP. SINAPI | C149: SINAPI | D149: 88297 | E149: Operador de perfuratriz | F149: h | G149: 0.35 | H149: 30,59 | I149: 10.71
B150: INS. SINAPI | C150: SINAPI | D150: 4778 | E150: Compressor | F150: h | G150: 0.35 | H150: 2,70 | I150: 0.95
B151: COMP. SINAPI | C151: SINAPI | D151: 5953 | E151: Perfuratriz | F151: h | G151: 0.35 | H151: 36,58 | I151: 12.8
F152: Sub total: | I152: 62.52
G153: BDI Serviços | H153: 0.2336 | I153: 14.6
H154: Total Serviços: | I154: 77.12
F155: CPU-08 | G155: PREÇO UNITÁRIO TOTAL: | I155: 83.76
B157: CPU-09 | C157: FONTE | D157: Codevasf | E157: PERFURAÇÃO DE POÇO COM DIÂMETRO MÍNIMO DE 6'' - ROCHA CRISTALINA. | F157: M | G157: COEF. | H157: PRECO UNITÁRIO (R$) | I157: TOTAL (R$)
E159: FORNECIMENTOS
B160: INS. SINAPI | C160: SINAPI | D160: 4227 | E160: Lubrificante | F160: l | G160: 0.12 | H160: 17,50 | I160: 2.1
B161: INS. SINAPI | C161: SINAPI | D161: 4229 | E161: Graxa grafitada | F161: kg | G161: 0.12 | H161: 25,69 | I161: 3.08
B162: INS. SINAPI | C162: SINAPI | D162: 4221 | E162: Óleo diesel | F162: l | G162: 4 | H162: 3,28 | I162: 13.12
F163: Sub total: | I163: 18.3
G164: BDI Materiais | H164: 0.1143 | I164: 2.09
H165: Total Fornecimentos: | I165: 20.39
E166: SERVIÇOS
B167: COMP. SINAPI | C167: SINAPI | D167: 88316 | E167: SERVENTE COM ENCARGOS COMPLEMENTARES | F167: h | G167: 0.5 | H167: 16,25 | I167: 8.13
B168: COMP. SINAPI | C168: SINAPI | D168: 90776 | E168: Encarregado | F168: h | G168: 0.5 | H168: 38,55 | I168: 19.28
B169: COMP. SINAPI | C169: SINAPI | D169: 88297 | E169: Operador de perfuratriz | F169: h | G169: 0.5 | H169: 30,59 | I169: 15.3
B170: INS. SINAPI | C170: SINAPI | D170: 4778 | E170: Compressor | F170: h | G170: 0.35 | H170: 2,70 | I170: 0.95
B171: COMP. SINAPI | C171: SINAPI | D171: 5953 | E171: Perfuratriz | F171: h | G171: 0.35 | H171: 36,58 | I171: 12.8
F172: Sub total: | I172: 56.46
G173: BDI Serviços | H173: 0.2336 | I173: 13.19
H174: Total Serviços: | I174: 69.65
F175: CPU-09 | G175: PREÇO UNITÁRIO TOTAL: | I175: 90.04
B177: CPU-10 | C177: FONTE | D177: Codevasf | E177: FORNECIMENTO E INSTALAÇÃO DE REVESTIMENTO DO POÇO EM TUBO PVC GEOMECÂNICO STD EM DN DE 6'' COM LUVAS E ROSCA. | F177: M | G177: COEF. | H177: PRECO UNITÁRIO (R$) | I177: TOTAL (R$)
E179: FORNECIMENTOS
B180: COMPRASNET | C180: COMPRASNET | D180: 287714/CATMAT | E180: Tubo de 6" de PVC geomecânico | F180: m | G180: 1 | H180: 61.63 | I180: 61.63
B181: INS. SINAPI | C181: SINAPI | D181: 4229 | E181: Graxa grafitada | F181: kg | G181: 0.2 | H181: 25,69 | I181: 5.14
B182: INS. SINAPI | C182: SINAPI | D182: 4221 | E182: Óleo diesel | F182: l | G182: 0.01 | H182: 3,28 | I182: 0.03
F183: Sub total: | I183: 66.8
G184: BDI Materiais | H184: 0.1143 | I184: 7.64
H185: Total Fornecimentos: | I185: 74.44
E186: SERVIÇOS
B187: COMP. SINAPI | C187: SINAPI | D187: 88316 | E187: SERVENTE COM ENCARGOS COMPLEMENTARES | F187: h | G187: 0.5 | H187: 16,25 | I187: 8.13
B188: COMP. SINAPI | C188: SINAPI | D188: 90776 | E188: Encarregado | F188: h | G188: 0.25 | H188: 38,55 | I188: 9.64
F189: Sub total: | I189: 17.77
G190: BDI Serviços | H190: 0.2336 | I190: 4.15
H191: Total Serviços: | I191: 21.92
F192: CPU-10 | G192: PREÇO UNITÁRIO TOTAL: | I192: 96.36
B194: CPU-11 | C194: FONTE | D194: Codevasf | E194: ARGAMASSA DE CIMENTO E AREIA TRAÇO 1:3, PREPARO MECÂNICO. | F194: M³ | G194: COEF. | H194: PRECO UNITÁRIO (R$) | I194: TOTAL (R$)
E196: FORNECIMENTOS
B197: INS. SINAPI | C197: SINAPI | D197: 1379 | E197: Cimento Portland CP II - 32. | F197: kg | G197: 473 | H197: 0,44 | I197: 208.12
B198: INS. SINAPI | C198: SINAPI | D198: 367 | E198: Areia Lavável. | F198: m³ | G198: 1.3 | H198: 79,90 | I198: 103.87
F199: Sub total: | I199: 311.99
G200: BDI Materiais | H200: 0.1143 | I200: 35.66
H201: Total Fornecimentos: | I201: 347.65
E202: SERVIÇOS
B203: COMP. SINAPI | C203: SINAPI | D203: 88316 | E203: SERVENTE COM ENCARGOS COMPLEMENTARES | F203: h | G203: 3.5 | H203: 16,25 | I203: 56.88
B204: COMP. SINAPI | C204: SINAPI | D204: 87445 | E204: Betoneira com capacidade de 400l. Motor Diesel de 7 HP. | F204: h | G204: 0.71 | H204: 3,15 | I204: 2.24
F205: Sub total: | I205: 59.12
G206: BDI Serviços | H206: 0.2336 | I206: 13.81
H207: Total Serviços: | I207: 72.93
F208: CPU-11 | G208: PREÇO UNITÁRIO TOTAL: | I208: 420.58
B210: CPU-12 | C210: FONTE | D210: Codevasf | E210: REALIZAÇÃO DE LIMPEZA DO POÇO, REALIZADO MEDIANTE A UTILIZAÇÃO DE COMPRESSOR DE AR PELO MÉTODO DE FLUXO E REFLUXO, INCLUINDO OPERAÇÃO E A INSTALAÇÃO DE COMPRESSOR DE AR, EM CONFORMIDADE COM A NBR 12244. | F210: UNID | G210: COEF. | H210: PRECO UNITÁRIO (R$) | I210: TOTAL (R$)
E212: FORNECIMENTOS
B213: INS. SINAPI | C213: SINAPI | D213: 4221 | E213: Óleo diesel | F213: l | G213: 3.5 | H213: 3,28 | I213: 11.48
B214: INS. SINAPI | C214: SINAPI | D214: 4227 | E214: Óleo Lubrificante. | F214: l | G214: 0.1 | H214: 17,50 | I214: 1.75
F216: Sub total: | I216: 13.23
G217: BDI Materiais | H217: 0.1143 | I217: 1.51
H218: Total Fornecimentos: | I218: 14.74
E219: SERVIÇOS
B220: COMP. SINAPI | C220: SINAPI | D220: 88316 | E220: SERVENTE COM ENCARGOS COMPLEMENTARES | F220: h | G220: 2 | H220: 16,25 | I220: 32.5
B221: COMP. SINAPI | C221: SINAPI | D221: 5953 | E221: Compressor | F221: h | G221: 2.5 | H221: 36,58 | I221: 91.45
B222: COMP. SINAPI | C222: SINAPI | D222: 88292 | E222: Operador de Compressor. | F222: h | G222: 1 | H222: 29,92 | I222: 29.92
F223: Sub total: | I223: 153.87
G224: BDI Serviços | H224: 0.2336 | I224: 35.94
H225: Total Serviços: | I225: 189.81
F226: CPU-12 | G226: PREÇO UNITÁRIO TOTAL: | I226: 204.55
B228: CPU-12 | C228: FONTE | D228: Codevasf | E228: REALIZAÇÃO DE DESENVOLVIMENTO E ESTIMULAÇÃO DO POÇO, REALIZADO MEDIANTE A UTILIZAÇÃO DE COMPRESSOR DE AR PELO MÉTODO DE FLUXO E REFLUXO, INCLUINDO OPERAÇÃO E A INSTALAÇÃO DE COMPRESSOR DE AR, EM CONFORMIDADE COM A NBR12244. | F228: UNID | G228: COEF. | H228: PRECO UNITÁRIO (R$) | I228: TOTAL (R$)
E230: FORNECIMENTOS
B231: INS. SINAPI | C231: SINAPI | D231: 4221 | E231: Óleo diesel | F231: l | G231: 4 | H231: 3,28 | I231: 13.12
B232: INS. SINAPI | C232: SINAPI | D232: 4227 | E232: Óleo Lubrificante. | F232: l | G232: 0.1 | H232: 17,50 | I232: 1.75
F234: Sub total: | I234: 14.87
G235: BDI Materiais | H235: 0.1143 | I235: 1.7
H236: Total Fornecimentos: | I236: 16.57
E237: SERVIÇOS
B238: COMP. SINAPI | C238: SINAPI | D238: 88316 | E238: SERVENTE COM ENCARGOS COMPLEMENTARES | F238: h | G238: 2 | H238: 16,25 | I238: 32.5
B239: COMP. SINAPI | C239: SINAPI | D239: 5953 | E239: Compressor | F239: h | G239: 3 | H239: 36,58 | I239: 109.74
B240: COMP. SINAPI | C240: SINAPI | D240: 88292 | E240: Operador de Compressor. | F240: h | G240: 1 | H240: 29,92 | I240: 29.92
F241: Sub total: | I241: 172.16
G242: BDI Serviços | H242: 0.2336 | I242: 40.22
... 609 more rows

Sheet CPU POÇOS (hidden)
B2: CODEVASF | C2: 4.13 | D2: COMPOSIÇÃO DE PREÇO UNITÁRIO
B3: OBRA: Perfuração e Instalação de Poços Tubulares. | H3: DATA: Abril/2012
B4: SERVIÇO : Elaboração de projeto e execução de rede elétrica de baixa tensão, extensão media de 200m, com cabo de aluminio de 25mm² (3+1). | H4: UNIDADE: | I4: un
B5: EQUIPAMENTO | K5: poste | L5: rede | M5: projeto
B6: DISCRIMINAÇÃO | C6: UNID. | D6: QUANT. | E6: PROD | F6: IMPROD | G6: P.UNIT. PROD | H6: P.UNIT. IMPR | I6: P.TOTAL
B7: GUINCHO TIPO MUNCK CAP * 6T * MONTADO EM CAMINHAO CARROCERIA, OU EQUIV SINAPI 3356 | C7: h | D7: 4 | E7: 1 | G7: 148.5 | I7: =D7*E7*G7+D7*F7*H7 -> 594 | M7: =I7 -> 594
B8: SUB-TOTAL | I8: =SUM(I7:I7) -> 594 | K8: =SUM(K7:K7) -> 0 | L8: =SUM(L7:L7) -> 0 | M8: =SUM(M7:M7) -> 594
B9: MATERIAL
B10: DISCRIMINAÇÃO | C10: UNID. | D10: QUANT. | H10: P.UNIT. | I10: P.TOTAL
B11: Cabo de aluminio 0,6/1kv multiplexados 1x1x16 +16mm² | C11: m | D11: 220 | E11: ORSE | F11: 2633 | H11: 2.15 | I11: =ROUND(D11*H11,2) -> 473 | L11: =I11 -> 473
B12: POSTE DE CONCRETO DUPLO T, 100KG, H = 8M DE ACORDO COM NBR 8451 | C12: un | D12: 4 | E12: SINAPI | F12: 13334 | H12: 228.33 | I12: =ROUND(D12*H12,2) -> 913.32 | K12: =I12 -> 913.32
B13: SUB-TOTAL | I13: =SUM(I11:I12) -> 1386.32 | K13: =SUM(K11:K12) -> 913.32 | L13: =SUM(L11:L12) -> 473 | M13: =SUM(M11:M12) -> 0
B14: SERVIÇOS - COMPOSIÇÕES AUXILIARES
B15: DISCRIMINAÇÃO | C15: UNID. | D15: QUANT. | H15: P.UNIT. | I15: P.TOTAL
I16: =D16*H16 -> 0
I17: =SUM(I16:I16) -> 0
B18: MÃO DE OBRA
B19: DISCRIMINAÇÃO | C19: UNID. | D19: QUANT. | H19: P.UNIT. | I19: P.TOTAL
B20: Engenheiro elétrico júnior | C20: mês | D20: 0.05 | H20: 5286.69 | I20: =ROUND(D20*H20,2) -> 264.33 | M20: =I20 -> 264.33
B21: Cadista. | C21: mês | D21: 0.05 | H21: 1973.76 | I21: =ROUND(D21*H21,2) -> 98.69 | M21: =I21 -> 98.69
B22: Topografo. | C22: h | D22: 5 | H22: 5.97 | I22: 29.85 | M22: =I22 -> 29.85
B23: Auxiliar de topografia. | C23: h | D23: 22.65 | H23: 1.99 | I23: 45.07 | M23: =I23 -> 45.07
B24: Eletricista montador. | C24: h | D24: 8 | H24: 4.11 | I24: 32.88 | L24: =I24 -> 32.88
B25: Auxiliar prático | C25: h | D25: 13 | H25: 3.38 | I25: 43.94 | L25: =I25 -> 43.94
B26: Servente. | C26: h | D26: 13 | H26: 3.09 | I26: 40.17 | K26: =I26 -> 40.17
B27: Leis Sociais: 127,96 % | I27: =SUM(I20:I26)*1.2796 -> 710.09 | K27: =SUM(K20:K26)*1.2796 -> 51.4 | L27: =SUM(L20:L26)*1.2796 -> 98.3 | M27: =SUM(M20:M26)*1.2796 -> 560.39
B28: SUB-TOTAL | I28: =SUM(I20:I27) -> 1265.02 | K28: =SUM(K20:K27) -> 91.57 | L28: =SUM(L20:L27) -> 175.12 | M28: =SUM(M20:M27) -> 998.33
B29: PRODUÇÃO DA EQUIPE | C29: 1 | D29: CUSTO | I29: =I28+I17+I13+I8 -> 3245.34 | K29: =K28+K17+K13+K8 -> 1004.89 | L29: =L28+L17+L13+L8 -> 648.12 | M29: =M28+M17+M13+M8 -> 1592.33
I30: =I29/C29 -> 3245.34 | K30: =K29/C29 -> 1004.89 | L30: =L29/C29 -> 648.12 | M30: =M29/C29 -> 1592.33
B31: BDI | C31: 22.5 | D31: % | I31: =C31/100*I30 -> 730.2 | K31: =C31/100*K30 -> 226.1 | L31: =C31/100*L30 -> 145.83 | M31: =C31/100*M30 -> 358.27
B32: TOTAL DO SERVIÇO - R$ | I32: =SUM(I30:I31) -> 3975.54 | K32: =SUM(K30:K31) -> 1230.99 | L32: =SUM(L30:L31) -> 793.95 | M32: =SUM(M30:M31) -> 1950.6
B40: CODEVASF | C40: 6.1 | D40: COMPOSIÇÃO DE PREÇO UNITÁRIO
B41: OBRA: Perfuração e Instalação de Poços Tubulares. | H41: DATA: Abril/2012
B42: SERVIÇO : Elaboração de projeto e execução de rede elétrica de baixa tensão, extensão = 250m, segundo padrão CELPE com capacidade de suportar a carga do equipamento instalado. O projeto devera ser aprovado pela CELPE. | H42: UNIDADE: | I42: un | J42: 184852
B43: EQUIPAMENTO | K43: poste | L43: rede | M43: projeto
B44: DISCRIMINAÇÃO | C44: UNID. | D44: QUANT. | E44: PROD | F44: IMPROD | G44: P.UNIT. PROD | H44: P.UNIT. IMPR | I44: P.TOTAL
B45: GUINCHO TIPO MUNCK CAP * 6T * MONTADO EM CAMINHAO CARROCERIA, OU EQUIV SINAPI 3356 | C45: h | D45: 4 | E45: 1 | G45: 148.5 | I45: =D45*E45*G45+D45*F45*H45 -> 594 | M45: =I45 -> 594
B46: SUB-TOTAL | I46: =SUM(I45:I45) -> 594 | K46: =SUM(K45:K45) -> 0 | L46: =SUM(L45:L45) -> 0 | M46: =SUM(M45:M45) -> 594
B47: MATERIAL
B48: DISCRIMINAÇÃO | C48: UNID. | D48: QUANT. | H48: P.UNIT. | I48: P.TOTAL
B49: Cabo de aluminio 0,6/1kv multiplexados 1x1x16 +16mm² | C49: m | D49: 275 | E49: ORSE | F49: 2633 | H49: 2.15 | I49: =ROUND(D49*H49,2) -> 591.25 | L49: =I49 -> 591.25
B50: POSTE DE CONCRETO DUPLO T, 100KG, H = 8M DE ACORDO COM NBR 8451 | C50: un | D50: 4 | E50: SINAPI | F50: 13334 | H50: 228.33 | I50: =ROUND(D50*H50,2) -> 913.32 | K50: =I50 -> 913.32
B51: SUB-TOTAL | I51: =SUM(I49:I50) -> 1504.57 | K51: =SUM(K49:K50) -> 913.32 | L51: =SUM(L49:L50) -> 591.25 | M51: =SUM(M49:M50) -> 0
B52: SERVIÇOS - COMPOSIÇÕES AUXILIARES
B53: DISCRIMINAÇÃO | C53: UNID. | D53: QUANT. | H53: P.UNIT. | I53: P.TOTAL
I54: =D54*H54 -> 0
I55: =SUM(I54:I54) -> 0
B56: MÃO DE OBRA
B57: DISCRIMINAÇÃO | C57: UNID. | D57: QUANT. | H57: P.UNIT. | I57: P.TOTAL
B58: Engenheiro elétrico júnior | C58: mês | D58: 0.05 | H58: 5286.69 | I58: =ROUND(D58*H58,2) -> 264.33 | M58: =I58 -> 264.33
B59: Cadista | C59: mês | D59: 0.05 | H59: 1973.76 | I59: 98.69 | M59: =I59 -> 98.69
B60: Topografo | C60: h | D60: 5 | H60: 5.97 | I60: 29.85 | M60: =I60 -> 29.85
B61: Auxiliar de topografia | C61: h | D61: 22.65 | H61: 1.99 | I61: 45.07 | M61: =I61 -> 45.07
B62: Eletricista montador | C62: h | D62: 8 | H62: 4.11 | I62: 32.88 | L62: =I62 -> 32.88
B63: Auxiliar prático | C63: h | D63: 13 | H63: 3.38 | I63: 43.94 | L63: =I63 -> 43.94
B64: Servente | C64: h | D64: 13 | H64: 3.09 | I64: 40.17 | K64: =I64 -> 40.17
B65: Leis Sociais: 127,96 % | I65: =SUM(I58:I64)*1.2796 -> 710.09 | K65: =SUM(K58:K64)*1.2796 -> 51.4 | L65: =SUM(L58:L64)*1.2796 -> 98.3 | M65: =SUM(M58:M64)*1.2796 -> 560.39
B66: SUB-TOTAL | I66: =SUM(I58:I65) -> 1265.02 | K66: =SUM(K58:K65) -> 91.57 | L66: =SUM(L58:L65) -> 175.12 | M66: =SUM(M58:M65) -> 998.33
B67: PRODUÇÃO DA EQUIPE | C67: 1 | D67: CUSTO | I67: =I66+I55+I51+I46 -> 3363.59 | K67: =K66+K55+K51+K46 -> 1004.89 | L67: =L66+L55+L51+L46 -> 766.37 | M67: =M66+M55+M51+M46 -> 1592.33
I68: =I67/C67 -> 3363.59 | K68: =K67/C67 -> 1004.89 | L68: =L67/C67 -> 766.37 | M68: =M67/C67 -> 1592.33
B69: BDI | C69: 22.5 | D69: % | I69: =C69/100*I68 -> 756.81 | K69: =C69/100*K68 -> 226.1 | L69: =C69/100*L68 -> 172.43 | M69: =C69/100*M68 -> 358.27
B70: TOTAL DO SERVIÇO - R$ | I70: =SUM(I68:I69) -> 4120.4 | K70: =SUM(K68:K69) -> 1230.99 | L70: =SUM(L68:L69) -> 938.8 | M70: =SUM(M68:M69) -> 1950.6
B77: COMPOSIÇÃO PARA ESTRUTURA IM-1
B78: DISCRIMINAÇÃO | C78: CÓDIGO CELPE | D78: CÓDIGO | E78: FONTE | F78: UNID. | G78: QUANT. | H78: P.UNIT. | I78: P.TOTAL
B79: Arruela quadrada aço 38 F18,00 | C79: A-2 | D79: 379 | E79: SINAPI | F79: unid. | G79: 1 | H79: 2.06 | I79: =ROUND(G79 * H79,2) -> 2.06
B80: Fita isolante preta 19x20mm (Fase A) | C80: A-15-3 | D80: 20111 | E80: SINAPI | F80: unid. | G80: =0.25 /20 -> 0.0125 | H80: 5 | I80: =ROUND(G80 * H80,2) -> 0.06
B81: Fita isol. EPR Autofusão preta 19mm x 10m | C81: A-15-6 | D81: 2643 | E81: ORSE | F81: unid. | G81: =0.25 / 10 -> 0.025 | H81: =11/1.387 -> 7.93 | I81: 0.2
B82: Sapatilha cabo 9,5mm | C82: A-25 | D82: 2007 | E82: ORSE | F82: unid. | G82: 1 | H82: =1.32/1.387 -> 0.95 | I82: 0.95
B83: Cabo de cobre nu 2 AWG | C83: C-7 | D83: 3249 | E83: ORSE | F83: kg | G83: 2.75 | H83: =41.69/1.387 -> 30.06 | I83: 82.67
B84: Fio cobre 750 V 1,50 PT (Nota 1) | C84: C-8 | D84: 938 | E84: SINAPI | F84: m | G84: 0.5 | H84: 0.71 | I84: 0.36
B85: Haste terra cobre 16x2400mm | C85: F-17 | D85: 3383 | E85: SINAPI | F85: unid. | G85: 1 | H85: 23.97 | I85: 23.97
B86: Olhal parafuso 5000 daN | C86: F-25 | D86: 421 | E86: SINAPI | F86: unid. | G86: 1 | H86: 12.9 | I86: 12.9
B87: Conector atr aço reta 35,0/HA 16,0mm² | C87: O-4 | D87: 425 | E87: SINAPI | F87: unid. | G87: 1 | H87: 2.72 | I87: 2.72
B88: Conector cunha est. Cinza | C88: O-8-1 | D88: 10624 | E88: ORSE | F88: unid. | G88: 1 | H88: =2.43/1.387 -> 1.75 | I88: 1.75
B89: Alça pref serv AL AS 25mm2 | C89: M-3 | D89: 417 | E89: SINAPI | F89: unid. | G89: 1 | H89: 2.53 | I89: 2.53
B90: Grampo aço fita ¾” | C90: M-6 | D90: 9961 | E90: ORSE | F90: unid. | G90: 1 | H90: =0.77/1.387 -> 0.56 | I90: 0.56
B91: Fita de aço inoxidável 19mmx30m | C91: M-7 | D91: 406 | E91: SINAPI | F91: unid. | G91: =0.6 / 30 -> 0.02 | H91: 27.49 | I91: 0.55
B92: Parafuso cabeça quadrada galv. M-16 (200 mm) | C92: F-30 | D92: 431 | E92: SINAPI | F92: unid. | G92: 1 | H92: 6.69 | I92: 6.69
B93: Valor Total | I93: =SUM(I79:I92) -> 137.97
B94: BDI | C94: 22.5 | D94: % | I94: =C94/100*I93 -> 31.04
B95: TOTAL - R$ | I95: =SUM(I93:I94) -> 169.01
B100: COMPOSIÇÃO PARA ESTRUTURA IM-A
B101: DISCRIMINAÇÃO | C101: CÓDIGO CELPE | D101: CÓDIGO | E101: FONTE | F101: UNID. | G101: QUANT. | H101: P.UNIT. | I101: P.TOTAL
B102: Arruela quadrada aço 38 F18,00 | C102: A-2 | D102: 379 | E102: SINAPI | F102: unid. | G102: 1 | H102: 2.06 | I102: =ROUND(G102 * H102,2) -> 2.06
B103: Fita isolante preta 19x20mm (Fase A) | C103: A-15-3 | D103: 20111 | E103: SINAPI | F103: unid. | G103: =0.25 /20 -> 0.0125 | H103: 5 | I103: 0.06
B104: Armação secundária aço 1 estribo c/haste | C104: F-3-1 | D104: 1094 | E104: SINAPI | F104: unid. | G104: 1 | H104: 9.06 | I104: 9.06
B105: Isolador roldana porcelana R-1350-2 | C105: I-3 | D105: 3398 | E105: SINAPI | F105: unid. | G105: 1 | H105: 5.52 | I105: 5.52
B106: Laço preformado roldana | C106: M-13 | D106: 417 | E106: SINAPI | F106: unid. | G106: 1 | H106: 2.53 | I106: 2.53
B107: Parafuso cabeça quadrada galv. M-16 (200 mm) | C107: F-30 | D107: 431 | E107: SINAPI | F107: unid. | G107: 1 | H107: 6.69 | I107: 6.69
B108: Valor Total | I108: =SUM(I102:I107) -> 25.92
B109: BDI | C109: 22.5 | D109: % | I109: =C109/100*I108 -> 5.83
B110: TOTAL - R$ | I110: =SUM(I108:I109) -> 31.75

Sheet DESLOCAMENTOS (hidden)
A1: CIDADE | B1: PERFURAÇÃO | C1: INSTALAÇÃO | D1: TOTAL | E1: RODOVIÁRIO | F1: VICINAL | G1: TEMPO UNITÁRIO | H1: TEMPO TOTAL
A2: AFRÂNIO | B2: 2 | D2: =B2+C2 -> 2 | E2: 106 | F2: 20 | G2: =(2*E2)/60+(2*F2)/40 -> 4.53 | H2: =G2*D2 -> 9.06
A3: ARARIPINA | B3: 4 | C3: 2 | D3: =B3+C3 -> 6 | E3: 271 | F3: 20 | G3: =(2*E3)/60+(2*F3)/40 -> 10.03 | H3: =G3*D3 -> 60.18
A4: BODOCÓ | B4: 14 | D4: 14 | E4: 250 | F4: 20 | G4: 9.33 | H4: 130.62
A5: CABROBÓ | B5: 7 | C5: 1 | D5: 8 | E5: 182 | F5: 20 | G5: 7.07 | H5: 56.56
A6: CEDRO | B6: 3 | D6: 3 | E6: 300 | F6: 20 | G6: 11 | H6: 33
A7: DORMENTES | B7: 3 | C7: 4 | D7: 7 | E7: 152 | F7: 20 | G7: 6.07 | H7: 42.49
A8: EXU | B8: 20 | D8: 20 | E8: 280 | F8: 20 | G8: 10.33 | H8: 206.6
A9: GRANITO | B9: 14 | C9: 10 | D9: 24 | E9: 275 | F9: 20 | G9: 10.17 | H9: 244.08
A10: IPUBI | B10: 1 | D10: 1 | E10: 255 | F10: 20 | G10: 9.5 | H10: 9.5
A11: LAGOA GRANDE | B11: 8 | C11: 1 | D11: 9 | E11: 47 | F11: 20 | G11: 2.57 | H11: 23.13
A12: MIRANDIBA | B12: 8 | D12: 8 | E12: 312 | F12: 20 | G12: 11.4 | H12: 91.2
A13: MOREILÂNDIA | B13: 6 | D13: 6 | E13: 314 | F13: 20 | G13: 11.47 | H13: 68.82
A14: OROCÓ | B14: 4 | D14: 4 | E14: 144 | F14: 20 | G14: 5.8 | H14: 23.2
A15: OURICURI | B15: 17 | C15: 3 | D15: 20 | E15: 211 | F15: 20 | G15: 8.03 | H15: 160.6
A16: PARNAMIRIM | B16: 4 | C16: 1 | D16: 5 | E16: 184 | F16: 20 | G16: 7.13 | H16: 35.65
A17: PETROLINA | B17: 6 | C17: 8 | D17: 14 | E17: 0 | F17: 20 | G17: =(2*E17)/60+(2*F17)/40 -> 1 | H17: 14
A18: SALGUEIRO | B18: 2 | D18: 2 | E18: 235 | F18: 20 | G18: 8.83 | H18: 17.66
A19: SANTA CRUZ | B19: 2 | D19: 2 | E19: 158 | F19: 20 | G19: 6.27 | H19: 12.54
A20: SANTA FILOMENA | B20: 3 | D20: 3 | E20: 164 | F20: 20 | G20: 6.47 | H20: 19.41
A21: SANTA MARIA DA BOA VISTA | B21: 4 | C21: 1 | D21: 5 | E21: 107 | F21: 20 | G21: 4.57 | H21: 22.85
A22: SÃO JOSÉ DO BELMONTE | B22: 3 | D22: 3 | E22: 328 | F22: 20 | G22: 11.93 | H22: 35.79
A23: SERRITA | B23: 7 | D23: 7 | E23: 288 | F23: 20 | G23: 10.6 | H23: 74.2
A24: TERRA NOVA | B24: 3 | D24: 3 | E24: 219 | F24: 20 | G24: 8.3 | H24: 24.9
A25: VERDEJANTE | B25: 3 | D25: 3 | E25: 277 | F25: 20 | G25: =(2*E25)/60+(2*F25)/40 -> 10.23 | H25: =G25*D25 -> 30.69
D26: =SUM(D2:D25) -> 179 | H26: =SUM(H2:H25) -> 1446.73
G27: MÉDIA | H27: =H26/D26 -> 8.08

Sheet RESUMO (hidden)
A1: ct 066
A2: 4.13.1 | B2: poste | C2: unid | D2: =4*160 -> 640 | E2: ='CPU POÇOS'!K32/4 -> 307.75 | F2: =D2*E2 -> 196960
A3: 4.13.2 | B3: rede | C3: m | D3: =200*160 -> 32000 | E3: ='CPU POÇOS'!L32/200 -> 3.97 | F3: =D3*E3 -> 127040
A4: 4.13.3 | B4: projeto | C4: unid | D4: =1*160 -> 160 | E4: ='CPU POÇOS'!M32 -> 1950.6 | F4: =D4*E4 -> 312096
F5: =SUM(F2:F4) -> 636096
F6: 4880.68
F7: =F5/160 -> 3975.6
A8: ct 060
A9: 4.13.1 | B9: poste | C9: unid | D9: =4*61.25 -> 245 | E9: =E2 -> 307.75 | F9: =D9*E9 -> 75398.75
A10: 4.13.2 | B10: rede | C10: m | D10: =200*61.25 -> 12250 | E10: =E3 -> 3.97 | F10: =D10*E10 -> 48632.5
A11: 4.13.3 | B11: projeto | C11: unid | D11: =1*61.25 -> 61.25 | E11: =E4 -> 1950.6 | F11: =D11*E11 -> 119474.25
F12: =SUM(F9:F11) -> 243505.5
F13: 4880.68
F14: =F12/61.25 -> 3975.6
A16: ct 066
A17: 6.1.1 | B17: poste | C17: unid | D17: =5*10 -> 50 | E17: ='CPU POÇOS'!K70/5 -> 246.2 | F17: =D17*E17 -> 12310
A18: 6.1.2 | B18: rede | C18: m | D18: =250*10 -> 2500 | E18: ='CPU POÇOS'!L70/250 -> 3.76 | F18: =D18*E18 -> 9400
A19: 6.1.3 | B19: projeto | C19: unid | D19: =1*10 -> 10 | E19: ='CPU POÇOS'!M70 -> 1950.6 | F19: =D19*E19 -> 19506
F20: =SUM(F17:F19) -> 41216
F21: 5315.24
F22: =F20/10 -> 4121.6
J42: 184852

Sheet VEICULOS
B1: CODEVASF - 1.4
B2: Perfuração e Instalação Poços Tubulares, no Estado de Pernambuco.
B3: Saveiro Robust 1.6 Total Flex 8V
B4: A | C4: Depreciação mensal do equipamento
B5: A1 | C5: Preço de Aquisição | D5: 48809
B6: A2 | C6: Tempo previsto de vida útil (meses) | D6: 48
B7: A3 | C7: Previsão de recup. Na venda do bem usado | D7: 0.4
B8: A4 | C8: Custo mensal [A1-(A3xA1)]/A2 | D8: 610.11
B9: B | C9: Juros pelo Capital empregado
B10: B1 | C10: Taxa mensal de Juros | D10: 0.05
B11: B2 | C11: Juros s/depreciação/aluguel (B1xA4) | D11: 30.51
B12: C | C12: Conservação e manutenção
B13: C1 | C13: Taxa de gastos s/a deprec. Inc. seguros (%) | D13: 1
B14: C2 | C14: Incidência mensal (C1xA4) | D14: 610.11
B15: D | C15: Combustível
B16: D1 | C16: Média mensal de quilômetro por veículo | D16: 3000
A17: COT. 18 | B17: D2 | C17: Preço do litro de combustível | D17: 4.79
B18: D3 | C18: Quilômetros rodados com um litro combustivel | D18: 10
B19: D4 | C19: Combustivel (D1/D3)*D2 | D19: 1437
B20: E | C20: Lubrificantes
B21: E1 | C21: Quilometragem do Contrato | D21: 36000
B22: E2 | C22: Franquia por troca de óleo (km) | D22: 5000
B23: E3 | C23: Preço do litro de óleo | D23: 13.44
B24: E4 | C24: Quantidade de litros de óleo por troca | D24: 3.5
B25: E5 | C25: Quantidade de dias do Contrato | D25: 365
B26: E6 | C26: Lubrificantes E = (E1*E3*E4*30)/E2*E5 | D26: 27.84
B27: F | C27: Pneus
B28: F1 | C28: Quilometragem do Contrato | D28: 36000
B29: F2 | C29: Vida do Pneu em quilômetros | D29: 45000
B30: F3 | C30: Quantidade de pneus | D30: 5
B31: F4 | C31: Preço do Pneu | D31: 334.37
B32: F5 | C32: Quantidade de dias do contrato | D32: 365
B33: F6 | C33: Pneus = (F1*F3*F4*30)/(F2*F5) | D33: 109.93
B34: G | C34: Motorista
B35: G1 | C35: Salário com encargos sociais | D35: 0
B36: H | C36: Custo Mensal
C37: Sem Motorista | D37: 2825.5
C38: Com Motorista
B39: I | C39: Custo Direto p/ km Rodado
C40: Sem Motorista | D40: 0.94
C41: Com Motorista
B42: J | C42: Preço cobrado c/BDI
B43: J1 | C43: Sem Motorista | D43: 2825.5
B44: J2 | C44: Com Motorista | D44: 0

Sheet BDI
B6: DETALHAMENTO DO BDI - SERVIÇOS | G6: DETALHAMENTO DO BDI - FORNECIMENTO
B7: NÃO DESONERADO | G7: NÃO DESONERADO
B8: Item | C8: Descrição dos serviços | D8: Preço de Venda (%) | E8: Custo Direto (%) | G8: Item | H8: Descrição dos serviços | I8: Preço de Venda (%) | J8: Custo Direto (%)
B10: 1 | C10: Administração Central (A) | E10: 0.0343 | G10: 1 | H10: Administração Central (A) | J10: 0.015
B12: 2 | C12: Impostos e Taxas (I) | D12: 0.0865 | G12: 2 | H12: Impostos e Taxas (I) | I12: 0.0365
B13: 2.1 | C13: ISS | D13: 0.05 | G13: 2.1 | H13: ISS | I13: 0
B14: 2.2 | C14: PIS | D14: 0.0065 | G14: 2.2 | H14: PIS | I14: 0.0065
B15: 2.3 | C15: Cofins | D15: 0.03 | G15: 2.3 | H15: Cofins | I15: 0.03
B16: 2.4 | C16: CPRB | D16: 0 | G16: 2.4 | H16: CPRB | I16: 0
B18: 3 | C18: Risco, seguro e garantia (R) | E18: 0.0125 | G18: 3 | H18: Risco, seguro e garantia (R) | J18: 0.0086
B19: 3.1 | C19: Risco | E19: 0.01 | G19: 3.1 | H19: Risco | J19: 0.0056
B20: 3.2 | C20: Seguro + Garantia | E20: 0.0025 | G20: 3.2 | H20: Seguro + Garantia | J20: 0.003
B22: 4 | C22: Despesas Financeiras (DF) | E22: 0.0085 | G22: 4 | H22: Despesas Financeiras (DF) | J22: 0.0085
B24: 5 | C24: Lucro (L) | E24: 0.0674 | G24: 5 | H24: Lucro (L) | J24: 0.04
C26: BDI* (%) | E26: 0.2336 | H26: BDI* (%) | J26: 0.1143
C30: BDI (%) - ADOTADO | E30: 0.2336 | H30: BDI (%) - ADOTADO | J30: 0.1143
B32: AC = | C32: taxa de rateio da Administração Central | E32: 0.0343 | G32: AC = | H32: taxa de rateio da Administração Central | J32: 0.015
B33: I = | C33: taxa de tributos | E33: 0.0865 | G33: I = | H33: taxa de tributos | J33: 0.0365
B34: R = | C34: taxa de risco, seguro e garantia | E34: 0.0125 | G34: R = | H34: taxa de risco, seguro e garantia | J34: 0.0086
B35: DF = | C35: taxa das despesas financeiras | E35: 0.0085 | G35: DF = | H35: taxa das despesas financeiras | J35: 0.0085
B36: L = | C36: taxa de lucro | E36: 0.0674 | G36: L = | H36: taxa de lucro | J36: 0.04

Sheet Encargos Sociais
A1: DETALHAMENTO DOS ENCARGOS SOCIAIS
A3: DISCRIMINAÇÃO | F3: SEM DESONERAÇÃO | H3: COM DESONERAÇÃO
F4: HORISTA | G4: MESALISTA | H4: HORISTA | I4: MESALISTA
A5: A | B5: GRUPO A
A6: A1 | B6: INSS | F6: 0.2 | G6: 0.2 | H6: 0,00% | I6: 0,00%
A7: A2 | B7: Sesi | F7: 0.015 | G7: 0.015 | H7: 0.015 | I7: 0.015
A8: A3 | B8: Senai | F8: 0.01 | G8: 0.01 | H8: 0.01 | I8: 0.01
A9: A4 | B9: Incra | F9: 0.002 | G9: 0.002 | H9: 0.002 | I9: 0.002
A10: A5 | B10: Sebrae | F10: 0.006 | G10: 0.006 | H10: 0.006 | I10: 0.006
A11: A6 | B11: Salário Educação | F11: 0.025 | G11: 0.025 | H11: 0.025 | I11: 0.025
A12: A7 | B12: Seguro Contra Acidente de Trabalho | F12: 0.03 | G12: 0.03 | H12: 0.03 | I12: 0.03
A13: A8 | B13: FGTS | F13: 0.08 | G13: 0.08 | H13: 0.08 | I13: 0.08
A14: A9 | B14: Seconci | F14: 0,00% | G14: 0,00% | H14: 0,00% | I14: 0,00%
A15: SUBTOTAL DE "A" | F15: 0.368 | G15: 0.368 | H15: 0.168 | I15: 0.168
A17: B | B17: GRUPO B
A18: B1 | B18: Repouso Semanal Remunerado | F18: 0.1806 | G18: NÃO INCIDE | H18: 0.1806 | I18: NÃO INCIDE
A19: B2 | B19: Feriados | F19: 0.0433 | G19: NÃO INCIDE | H19: 0.0433 | I19: NÃO INCIDE
A20: B3 | B20: Auxílio - Enfermidade | F20: 0.0093 | G20: 0.0071 | H20: 0.0093 | I20: 0.0071
A21: B4 | B21: 13º Salário | F21: 0.1086 | G21: 0.0833 | H21: 0.1086 | I21: 0.0833
A22: B5 | B22: Licença Paternidade | F22: 0.0007 | G22: 0.0006 | H22: 0.0007 | I22: 0.0006
A23: B6 | B23: Faltas Justificadas | F23: 0.0072 | G23: 0.0056 | H23: 0.0072 | I23: 0.0056
A24: B7 | B24: Dias de Chuvas | F24: 0.0218 | G24: NÃO INCIDE | H24: 0.0218 | I24: NÃO INCIDE
A25: B8 | B25: Auxílio Acidente de Trabalho | F25: 0.0011 | G25: 0.0009 | H25: 0.0011 | I25: 0.0009
A26: B9 | B26: Férias Gozadas | F26: 0.0769 | G26: 0.059 | H26: 0.0769 | I26: 0.059
A27: B10 | B27: Salário Maternidade | F27: 0.0003 | G27: 0.0002 | H27: 0.0003 | I27: 0.0002
A28: SUBTOTAL DE "B" | F28: 0.4498 | G28: 0.1567 | H28: 0.4498 | I28: 0.1567
A30: C | B30: GRUPO C
A31: C1 | B31: Aviso Prévio Indenizado | F31: 0.0483 | G31: 0.0371 | H31: 0.0483 | I31: 0.0371
A32: C2 | B32: Aviso Prévio Trabalhado | F32: 0.0011 | G32: 0.0009 | H32: 0.0011 | I32: 0.0009
A33: C3 | B33: Férias Indenizadas | F33: 0.0596 | G33: 0.0458 | H33: 0.0596 | I33: 0.0458
A34: C4 | B34: Depósito Recisão Sem Justa Causa | F34: 0.0496 | G34: 0.0381 | H34: 0.0496 | I34: 0.0381
A35: C5 | B35: Indenização Adicional | F35: 0.0041 | G35: 0.0031 | H35: 0.0041 | I35: 0.0031
A36: SUBTOTAL DE "C" | F36: 0.1627 | G36: 0.125 | H36: 0.1627 | I36: 0.125
A38: D | B38: GRUPO D
A39: D1 | B39: Reincidência de Grupo A sobre Grupo B | F39: 0.1655 | G39: 0.0577 | H39: 0.0756 | I39: 0.0263
A40: D2 | B40: Reincidência de Grupo A sobre Aviso Prévio Trabalhado e Reincidência do FGTS sobre Aviso Prévio Indenizado | F40: 0.0043 | G40: 0.0033 | H40: 0.004 | I40: 0.0031
A41: SUBTOTAL DE "D" | F41: 0.1698 | G41: 0.061 | H41: 0.0796 | I41: 0.0294
A43: TOTAIS DE ENCARGOS SOCIAIS | F43: 1.1503 | G43: 0.7107 | H43: 0.8601 | I43: 0.4791
